bitfinex-derivatives/quotes_ETHF0:USTF0_20210705
["timestamp","ask_amount","ask_price","bid_price","bid_amount"]
[1625514669578,2.20527,2243.4,2243.2,2.20527]
[1625514670879,2.20527,2243.4,2243.2,48.90437]
[1625514674237,2.20527,2243.7,2243.2,48.90437]
[1625514675539,2.20527,2243.7,2243.6,2.20527]
[1625514675738,2.20527,2243.7,2243.6,5.08767]
[1625514678501,2.20527,2243.7,2243.6,2.20527]
[1625514678649,2.20527,2243.7,2243.2,48.90437]
[1625514679551,4.41054,2243.7,2243.2,51.10964]
[1625514681556,2.20527,2243.3,2243.2,51.10964]
[1625514683609,2.20527,2243.3,2243.0,2.20527]
[1625514685633,2.20527,2243.1,2242.8,2.20527]
[1625514685737,5.53227,2243.1,2242.8,2.20527]
[1625514686281,51.63157,2243.1,2242.8,2.20527]
[1625514687031,51.63157,2243.1,2242.2,14.256]
[1625514687233,51.63157,2243.1,2241.7,2.28932625]
[1625514687332,51.63157,2243.1,2241.7,1.28932625]
[1625514687534,51.63157,2243.1,2241.4,1.29026007]
[1625514687632,2.20527,2241.9,2241.5,2.20527]
[1625514687733,5.19597,2241.9,2241.5,2.20527]
[1625514687834,5.19597,2241.9,2241.5,2.33738658]
[1625514688185,5.19597,2241.9,2241.6,0.13212291]
[1625514689485,5.19597,2241.9,2241.1,8.82927224]
[1625514689687,4.41054,2241.2,2241.1,10.12161627]
[1625514689811,7.15294,2241.2,2241.1,1.29234403]
[1625514689953,7.15294,2241.2,2240.8,2.58468805]
[1625514690060,49.374,2240.9,2240.8,2.58468805]
[1625514690279,49.374,2240.9,2240.8,2.11858805]
[1625514690378,49.374,2240.9,2240.8,1.23458805]
[1625514690472,49.374,2240.9,2240.6,3.36009447]
[1625514690600,49.374,2240.9,2239.9,6.46172013]
[1625514690601,49.374,2240.9,2239.9,1.25191693]
[1625514690683,53.4318,2240.0,2239.9,1.25191693]
[1625514690768,56.1535,2240.0,2239.9,1.25191693]
[1625514691257,56.1535,2240.0,2239.1,3.37394938]
[1625514691354,56.1535,2240.0,2239.2,0.18853333]
[1625514691660,2.20527,2239.4,2239.3,2.20527]
[1625514692258,2.20527,2239.4,2239.3,2.8664608]
[1625514692357,1.0,2240.8,2239.3,45.7808608]
[1625514692455,15.1277,2241.1,2239.3,45.7808608]
[1625514692556,16.1277,2241.1,2239.3,48.5197608]
[1625514692656,16.1277,2241.1,2239.4,0.66113051]
[1625514692756,15.1277,2241.1,2239.4,0.84891137]
[1625514692958,15.1277,2241.1,2239.4,0.66113051]
[1625514693159,15.1277,2241.1,2239.5,0.18776591]
[1625514693761,2.20527,2240.2,2240.1,2.20527]
[1625514693861,2.20527,2240.2,2240.1,5.14937]
[1625514696421,2.20527,2240.2,2240.1,2.20527]
[1625514696537,2.20527,2240.2,2239.3,42.9144]
[1625514697672,2.20527,2240.2,2239.0,4.759]
[1625514697772,4.41054,2239.4,2239.0,4.759]
[1625514697872,6.95694,2239.4,2239.0,4.759]
[1625514698123,4.75167,2239.4,2239.0,4.759]
[1625514698473,4.75167,2239.4,2238.6,2.20527]
[1625514699133,4.75167,2239.4,2238.4,2.20527]
[1625514699254,4.75167,2239.4,2238.2,3.3685832]
[1625514699384,5.0,2239.3,2238.1,3.36910671]
[1625514699454,4.75167,2239.4,2238.1,3.36910671]
[1625514699530,9.75167,2239.4,2238.1,3.36910671]
[1625514699726,4.41054,2238.2,2238.1,3.36910671]
[1625514700077,4.41054,2238.2,2237.8,2.20527]
[1625514700428,4.41054,2238.2,2236.7,15.57637043]
[1625514700538,7.58334,2238.2,2236.7,14.2667]
[1625514700887,39.1949,2238.0,2236.7,14.2667]
[1625514701742,2.20527,2237.4,2237.3,2.20527]
[1625514702446,5.59747,2237.4,2237.3,2.20527]
[1625514702545,5.59747,2237.4,2235.8,15.1421]
[1625514703299,2.20527,2237.4,2235.8,15.1421]
[1625514703499,2.20527,2237.4,2235.9,16.129799]
[1625514703749,2.20527,2237.4,2237.3,2.20527]
[1625514703848,2.20527,2237.4,2237.3,4.53297]
[1625514705256,2.20527,2237.4,2237.3,7e-05]
[1625514705455,2.20527,2237.4,2235.8,19.9011]
[1625514705857,2.20527,2237.4,2237.0,2.20527]
[1625514706181,2.20527,2237.4,2236.9,47.0945]
[1625514706280,2.20527,2237.4,2236.3,2.159]
[1625514706930,2.20527,2237.4,2235.8,15.1421]
[1625514707431,2.20527,2237.4,2235.8,19.9011]
[1625514707794,2.20527,2237.4,2236.9,2.20527]
[1625514709755,39.1949,2238.0,2236.9,2.20527]
[1625514709861,39.1949,2238.0,2237.9,2.20527]
[1625514709956,2.20527,2238.1,2237.9,5.18157]
[1625514710312,2.20527,2238.1,2237.9,2.9763]
[1625514710645,2.20527,2238.1,2235.9,5.759]
[1625514710735,5.57067,2238.1,2235.9,4.759]
[1625514711312,5.57067,2238.1,2236.9,49.8283]
[1625514711424,5.57067,2238.1,2236.9,52.5265]
[1625514711817,5.57067,2238.1,2237.8,2.20527]
[1625514711919,2.20527,2238.1,2237.8,2.20527]
[1625514712019,2.20527,2238.1,2237.8,4.64387]
[1625514712869,14.245,2239.6,2237.8,4.64387]
[1625514713827,2.20527,2238.7,2238.6,2.20527]
[1625514713948,2.20527,2238.7,2238.6,4.81327]
[1625514714883,2.20527,2238.7,2238.6,2.20527]
[1625514715885,4.41054,2238.7,2238.6,2.20527]
[1625514718790,42.3651,2239.7,2238.6,2.20527]
[1625514719688,14.5034,2240.6,2238.6,2.20527]
[1625514719892,2.20527,2239.7,2239.5,2.20527]
[1625514719989,2.20527,2239.7,2239.5,5.62687]
[1625514721195,14.5034,2240.6,2239.5,5.62687]
[1625514721311,61.5214,2241.6,2239.5,5.62687]
[1625514721900,2.20527,2240.3,2240.1,5.44327]
[1625514723899,4.41054,2240.3,2240.1,5.44327]
[1625514724299,1.0,2241.5,2240.1,5.44327]
[1625514724400,61.5214,2241.6,2240.1,5.44327]
[1625514724601,1.0,2242.4,2240.1,5.44327]
[1625514725853,2.20527,2241.8,2241.7,2.20527]
[1625514726051,2.20527,2241.8,2241.7,5.67657]
[1625514727157,2.20527,2241.8,2241.7,2.20527]
[1625514727858,4.41054,2241.8,2241.7,2.20527]
[1625514731330,4.41054,2241.8,2240.4,1.0]
[1625514731429,7.72804,2241.8,2239.8,1.0]
[1625514731531,7.72804,2241.8,2239.7,15.1284]
[1625514731938,4.43797,2240.7,2240.6,2.20527]
[1625514733342,2.2327,2240.7,2240.6,2.20527]
[1625514733440,3.0274,2241.2,2240.6,2.20527]
[1625514733541,53.6763,2241.7,2240.6,2.20527]
[1625514733741,14.4253,2242.2,2240.6,2.20527]
[1625514733943,2.20527,2241.2,2241.0,2.20527]
[1625514735194,5.47077,2241.2,2241.0,2.20527]
[1625514735844,5.47077,2241.2,2240.6,2.20527]
[1625514735944,2.20527,2240.9,2240.6,2.20527]
[1625514737302,2.20527,2240.9,2239.4,1.0]
[1625514737401,2.20527,2240.9,2238.5,2.8841]
[1625514737702,3.20527,2240.9,2237.0,6.986]
[1625514737806,3.20527,2240.9,2237.4,14.6724]
[1625514737901,3.20527,2240.9,2238.1,13.7048]
[1625514738001,2.20527,2239.8,2239.5,2.20527]
[1625514738103,3.315,2239.8,2239.5,2.20527]
[1625514739351,1.0,2240.8,2239.5,2.20527]
[1625514739451,14.9548,2240.9,2239.5,2.20527]
[1625514739953,2.20527,2240.0,2239.9,2.20527]
[1625514741403,14.9548,2240.9,2239.9,2.20527]
[1625514741505,14.9548,2240.9,2239.9,4.42147]
[1625514741706,1.0,2241.8,2239.9,4.42147]
[1625514741802,2.1754,2241.9,2239.9,4.42147]
[1625514742004,2.20527,2240.6,2240.3,2.20527]
[1625514743025,2.20527,2240.6,2239.2,41.4472]
[1625514744006,2.20527,2240.6,2240.2,2.20527]
[1625514744612,2.3331,2241.4,2240.2,2.20527]
[1625514745810,0.9052,2241.8,2240.2,2.20527]
[1625514746010,2.20527,2241.1,2241.0,2.20527]
[1625514750186,2.20527,2241.1,2240.1,43.9948]
[1625514752107,4.41054,2241.1,2241.0,2.20527]
[1625514753510,4.41054,2241.1,2240.1,41.3301]
[1625514754062,2.20527,2240.7,2240.4,2.20527]
[1625514754462,2.20527,2241.1,2240.4,2.20527]
[1625514756067,2.20527,2241.1,2240.8,2.20527]
[1625514758168,2.20527,2241.1,2240.8,4.41054]
[1625514761791,2.20527,2241.2,2240.8,4.41054]
[1625514762141,2.20527,2241.2,2241.1,2.20527]
[1625514762678,2.20527,2241.2,2239.7,1.0]
[1625514762752,4.69047,2241.2,2238.5,17.7183]
[1625514762864,4.69047,2241.2,2238.6,1.0]
[1625514763592,5.58777,2241.2,2238.6,1.0]
[1625514764094,5.58777,2241.2,2238.6,1.8996]
[1625514764197,2.4852,2241.2,2240.2,2.20527]
[1625514764298,6.81859182,2243.0,2240.2,4.54387]
[1625514764497,5.0,2243.0,2240.2,4.54387]
[1625514764799,5.0,2243.0,2240.5,38.7029]
[1625514765497,78.4351,2242.7,2240.5,38.7029]
[1625514766203,2.20527,2241.5,2241.4,2.20527]
[1625514768005,2.20527,2241.5,2240.2,2.3386]
[1625514768106,5.20577,2241.5,2238.8,1.79910425]
[1625514768208,3.0005,2241.5,2240.8,2.20527]
[1625514770163,5.20577,2241.5,2241.4,2.20527]
[1625514770261,2.20527,2241.5,2241.4,2.20527]
[1625514772168,4.41054,2241.5,2241.4,2.20527]
[1625514779497,6.99544,2241.5,2241.4,2.20527]
[1625514780550,4.41054,2241.5,2241.4,2.20527]
[1625514789127,5.759,2242.6,2241.4,2.20527]
[1625514789229,4.759,2242.6,2241.4,2.20527]
[1625514789529,77.4351,2242.7,2241.4,2.20527]
[1625514789627,18.7747,2243.1,2241.4,2.20527]
[1625514790361,2.20527,2242.8,2242.7,2.20527]
[1625514790481,2.20527,2242.8,2242.7,4.92437]
[1625514792334,4.41054,2242.8,2242.7,4.92437]
[1625514792896,4.41054,2242.8,2242.7,2.7191]
[1625514792992,4.41054,2242.8,2241.2,1.0]
[1625514793096,4.41054,2242.8,2241.1,3.3522]
[1625514793195,4.41054,2242.8,2240.6,15.0576]
[1625514794201,4.41054,2242.8,2240.7,1.0]
[1625514794403,4.41054,2242.8,2242.6,2.20527]
[1625514796161,2.20527,2242.8,2242.6,2.20527]
[1625514796361,2.20527,2242.8,2242.6,4.41054]
[1625514799668,2.20527,2243.1,2242.6,4.41054]
[1625514800269,2.20527,2243.1,2242.6,57.96374]
[1625514800369,2.20527,2243.1,2243.0,2.20527]
[1625514800471,2.20527,2243.1,2243.0,4.83097]
[1625514801774,2.20527,2243.1,2243.0,2.6257]
[1625514802275,2.20527,2243.1,2242.6,55.75847]
[1625514802375,4.41054,2243.1,2242.6,55.75847]
[1625514803079,4.41054,2243.1,2242.6,2.20527]
[1625514803181,7.16534,2243.1,2242.6,2.20527]
[1625514803490,11.92434,2243.1,2242.6,2.20527]
[1625514803884,54.9201,2242.8,2242.6,2.20527]
[1625514804182,54.9201,2242.8,2241.8,14.0282]
[1625514804384,2.20527,2242.3,2241.8,14.0282]
[1625514804788,2.20527,2242.3,2241.7,2.20527]
[1625514806401,2.20527,2242.3,2242.0,2.20527]
[1625514806601,2.20527,2242.3,2241.0,45.4131]
[1625514806702,2.20527,2242.3,2240.7,14.6891]
[1625514807356,2.20527,2242.3,2240.8,0.1321698]
[1625514808407,2.20527,2241.8,2241.6,2.20527]
[1625514810513,4.41054,2241.8,2241.6,2.20527]
[1625514810614,1.83837361,2242.5,2241.6,2.20527]
[1625514811678,1.83837361,2242.5,2241.6,5.43007]
[1625514812279,6.597396,2242.6,2241.6,5.43007]
[1625514812482,2.20527,2242.0,2241.9,2.20527]
[1625514813033,56.75834906,2242.8,2241.9,2.20527]
[1625514814441,2.20527,2242.5,2242.4,2.20527]
[1625514815401,54.9201,2242.8,2242.4,2.20527]
[1625514816261,54.9201,2242.8,2241.9,2.20527]
[1625514816459,2.20527,2242.1,2241.9,2.20527]
[1625514818535,2.20527,2242.1,2242.0,2.20527]
[1625514818820,2.20527,2242.4,2242.0,2.20527]
[1625514820522,2.20527,2242.4,2242.3,2.20527]
[1625514820621,2.20527,2242.4,2242.3,5.57577]
[1625514821072,54.9201,2242.8,2242.3,5.57577]
[1625514822073,54.9201,2242.8,2242.3,3.3705]
[1625514822175,54.9201,2242.8,2242.0,2.20527]
[1625514822573,54.9201,2242.8,2241.8,2.20527]
[1625514822574,2.20527,2242.1,2241.8,2.20527]
[1625514824584,2.20527,2242.1,2242.0,2.20527]
[1625514825127,54.9201,2242.8,2242.0,2.20527]
[1625514826435,56.75800156,2242.8,2242.0,2.20527]
[1625514826636,2.20527,2242.4,2242.3,2.20527]
[1625514828539,2.20527,2242.4,2241.5,54.2257]
[1625514828657,2.20527,2242.4,2241.7,2.20527]
[1625514830192,4.04398098,2242.4,2241.7,2.20527]
[1625514830291,48.3114,2241.8,2241.7,2.20527]
[1625514830491,48.3114,2241.8,2240.7,14.6891]
[1625514830595,2.20527,2240.8,2240.7,14.6891]
[1625514830795,4.48407,2240.8,2240.7,14.6891]
[1625514830894,4.48407,2240.8,2240.5,2.20527]
[1625514831195,43.9861,2240.6,2240.5,2.20527]
[1625514833717,2.20527,2240.8,2240.5,2.20527]
[1625514833813,2.20527,2240.8,2240.5,4.76717]
[1625514834267,42.4963,2240.7,2240.5,4.76717]
[1625514840629,2.20527,2240.9,2240.5,4.76717]
[1625514841231,2.20527,2240.9,2240.7,37.7757]
[1625514842737,2.20527,2240.9,2240.8,2.20527]
[1625514848403,2.20527,2240.9,2240.5,4.76717]
[1625514848804,2.20527,2240.9,2240.8,2.20527]
[1625514851577,2.20527,2240.9,2240.5,4.76717]
[1625514854135,2.20527,2240.9,2240.6,0.13219314]
[1625514854834,2.20527,2241.7,2240.8,2.20527]
[1625514855336,2.20527,2241.7,2240.9,56.0829]
[1625514856751,2.20527,2241.7,2241.0,0.13217581]
[1625514856851,2.20527,2241.7,2241.4,2.20527]
[1625514857954,2.20527,2241.7,2241.4,43.38947]
[1625514858855,2.20527,2241.5,2241.4,43.38947]
[1625514859056,2.20527,2241.5,2241.4,2.20527]
[1625514864430,50.6702,2241.9,2241.4,2.20527]
[1625514864931,52.87547,2241.9,2241.7,2.20527]
[1625514865031,52.87547,2241.9,2241.7,4.36617]
[1625514865934,2.20527,2241.9,2241.7,4.36617]
[1625514866032,1.83958097,2242.5,2241.7,4.36617]
[1625514866333,4.759,2242.6,2241.7,4.36617]
[1625514866534,56.75949176,2242.8,2241.9,47.1112]
[1625514866939,58.96476176,2242.8,2242.7,2.20527]
[1625514867036,4.04466176,2242.8,2242.7,4.93867]
[1625514867613,2.20527,2242.8,2242.7,4.93867]
[1625514868035,2.20527,2242.8,2242.7,2.7334]
[1625514868889,2.20527,2242.8,2241.7,2.1609]
[1625514868996,4.41054,2242.8,2241.7,4.36617]
[1625514869493,1.83927198,2242.6,2241.7,4.36617]
[1625514870992,2.20527,2241.8,2241.7,4.36617]
[1625514872808,1.20527,2241.8,2241.7,4.36617]
[1625514873361,1.20527,2241.8,2241.7,2.1609]
[1625514873458,1.20527,2241.8,2241.5,2.20527]
[1625514874159,1.83931622,2242.6,2241.5,2.20527]
[1625514874260,1.83931622,2242.6,2241.5,4.84147]
[1625514875031,2.20527,2242.2,2242.0,2.20527]
[1625514887210,2.20527,2242.2,2241.5,2.20527]
[1625514887312,5.14587,2242.2,2241.5,2.20527]
[1625514889028,4.41054,2241.6,2241.5,2.20527]
[1625514893095,7.51254,2241.6,2241.5,2.20527]
[1625514893200,7.51254,2241.6,2240.6,2.82473939]
[1625514893295,7.51254,2241.6,2240.6,1.82473939]
[1625514893499,7.51254,2241.6,2240.4,1.82601134]
[1625514893800,50.8654,2241.0,2240.5,0.79316358]
[1625514893898,53.062,2241.0,2240.5,0.79316358]
[1625514894152,53.062,2241.0,2240.5,0.13219393]
[1625514894599,53.062,2241.0,2240.4,0.13220993]
[1625514895054,55.26727,2241.0,2240.9,2.20527]
[1625514897057,57.47254,2241.0,2240.9,2.20527]
[1625514900664,4.41054,2241.0,2240.9,5.41127]
[1625514902173,48.3787,2241.5,2240.9,5.41127]
[1625514903093,2.20527,2241.4,2241.2,2.20527]
[1625514904446,2.20527,2241.4,2241.3,42.8083]
[1625514904748,2.20527,2241.6,2241.3,42.8083]
[1625514905093,2.20527,2241.6,2241.5,2.20527]
[1625514905192,2.20527,2241.6,2241.5,5.22557]
[1625514906149,2.20527,2242.0,2241.5,5.22557]
[1625514907200,2.20527,2242.0,2241.9,2.20527]
[1625514909507,2.20527,2242.0,2241.8,39.6859]
[1625514911163,2.20527,2241.9,2241.8,39.6859]
[1625514913170,2.20527,2241.9,2241.8,41.89117]
[1625514918896,2.20527,2241.9,2241.8,2.20527]
[1625514919498,48.48067,2241.9,2241.8,2.20527]
[1625514920709,2.20527,2241.9,2241.8,2.20527]
[1625514921305,2.20527,2241.9,2241.8,40.71387]
[1625514923209,1.84162933,2242.4,2241.8,40.71387]
[1625514925217,2.20527,2242.3,2242.2,2.20527]
[1625514927632,52.63147,2242.3,2242.2,2.20527]
[1625514927835,54.47344809,2242.3,2242.2,2.20527]
[1625514928034,54.47344809,2242.3,2241.8,38.5086]
[1625514929242,2.20527,2241.9,2241.8,40.71387]
[1625514937171,1.31622577,2242.1,2241.8,40.71387]
[1625514937380,1.31622577,2242.1,2242.0,2.20527]
[1625514937628,1.31620606,2242.4,2242.0,2.20527]
[1625514937722,1.31620606,2242.4,2242.0,2.33741496]
[1625514938119,1.31620606,2242.4,2242.0,2.20527]
[1625514938223,1.84268849,2242.5,2242.0,2.20527]
[1625514938224,1.31620239,2242.5,2242.0,2.20527]
[1625514938322,1.31620239,2242.5,2242.3,44.5083]
[1625514938520,1.3162373,2242.4,2242.3,44.5083]
[1625514938819,1.31622553,2242.5,2242.3,44.5083]
[1625514939420,1.31622553,2242.5,2242.4,2.20527]
[1625514941939,4.04795334,2242.6,2242.4,2.20527]
[1625514942750,1.84319492,2242.5,2242.4,2.20527]
[1625514945351,1.84319492,2242.5,2241.5,1.0]
[1625514945451,1.84319492,2242.5,2241.3,18.51402732]
[1625514945651,1.84319492,2242.5,2241.6,0.13216852]
[1625514945953,41.1699,2241.7,2241.6,0.13216852]
[1625514946060,41.1699,2241.7,2241.3,2.20527]
[1625514946305,41.1699,2241.7,2241.0,1.30570767]
[1625514946559,49.2274,2241.1,2241.0,1.30570767]
[1625514946674,49.2274,2241.1,2240.6,1.30730135]
[1625514946760,51.7078,2241.1,2240.6,1.30730135]
[1625514947010,51.7078,2241.1,2240.4,1.30802197]
[1625514947209,51.7078,2241.1,2240.7,0.13220981]
[1625514947412,4.41054,2240.8,2240.7,0.13220981]
[1625514947611,4.41054,2240.8,2240.6,2.20527]
[1625514947912,4.41054,2240.8,2240.7,0.1322071]
[1625514948714,4.41054,2240.8,2240.6,2.20527]
[1625514949115,4.41054,2240.8,2240.7,0.13221597]
[1625514949767,4.41054,2240.8,2240.6,2.20527]
[1625514950166,4.41054,2240.8,2240.7,0.13221429]
[1625514951366,49.2274,2241.1,2240.7,0.13221429]
[1625514951467,49.2274,2241.1,2241.0,2.20527]
[1625514955979,1.31631103,2241.4,2241.0,4.53327]
[1625514956180,1.31631103,2241.4,2241.0,4.66546086]
[1625514956281,1.31610379,2241.5,2241.0,4.66546086]
[1625514956477,1.31610379,2241.5,2241.1,0.79301344]
[1625514956578,4.21153212,2242.2,2241.1,0.79301344]
[1625514956579,1.31578695,2242.2,2241.1,0.79301344]
[1625514956678,1.31578695,2242.2,2241.8,40.0012]
[1625514956777,1.31578695,2242.2,2241.8,43.4461]
[1625514957279,1.31570482,2242.3,2241.8,43.4461]
[1625514957479,3.52097482,2242.3,2242.1,2.20527]
[1625514957579,2.20527,2242.3,2242.1,2.20527]
[1625514959237,1.31573169,2242.6,2242.1,2.20527]
[1625514959437,1.31573169,2242.6,2242.5,2.20527]
[1625514959538,1.31573169,2242.6,2242.5,4.98407]
[1625514959700,1.3156365,2242.7,2242.5,4.98407]
[1625514959901,1.3156365,2242.7,2242.5,53.13657]
[1625514960002,1.31541393,2242.8,2242.5,53.13657]
[1625514961355,1.31542279,2242.7,2242.5,53.13657]
[1625514961555,3.52069279,2242.7,2242.5,53.13657]
[1625514961655,3.52069279,2242.7,2242.5,2.7788]
[1625514961906,3.52069279,2242.7,2241.8,43.4461]
[1625514962307,3.52069279,2242.7,2241.9,0.13214211]
[1625514963260,1.31547127,2242.6,2241.9,0.13214211]
[1625514963356,3.64747127,2242.6,2241.9,0.13214211]
[1625514963460,3.64747127,2242.6,2241.5,0.13216252]
[1625514963560,1.31560457,2242.2,2241.5,0.13216252]
[1625514963857,1.31560457,2242.2,2241.2,14.1512]
[1625514963961,1.31560457,2242.2,2240.9,1.30622913]
[1625514964061,1.31560457,2242.2,2240.8,1.30640192]
[1625514964062,3.95318255,2242.1,2240.8,1.30640192]
[1625514964360,43.3886,2241.6,2240.7,1.307117]
[1625514964611,43.3886,2241.6,2240.9,0.13218339]
[1625514964963,43.3886,2241.6,2240.7,0.1322026]
[1625514965166,44.70447134,2241.6,2240.7,0.1322026]
[1625514965465,1.31589098,2241.5,2240.7,0.1322026]
[1625514965578,6.75964,2240.8,2240.7,0.1322026]
[1625514965769,6.75964,2240.8,2240.6,2.20527]
[1625514966424,51.83854,2240.8,2240.6,2.20527]
[1625514966526,51.83854,2240.8,2240.7,0.13220717]
[1625514966831,49.63327,2240.8,2240.7,0.13220717]
[1625514970934,4.55437,2240.8,2240.7,0.79317745]
[1625514971036,2.20527,2240.8,2240.7,0.79317745]
[1625514971537,2.20527,2240.8,2240.7,2.99844745]
[1625514971740,2.20527,2240.8,2240.7,4.31056886]
[1625514972688,40.5472,2241.6,2240.7,4.31056886]
[1625514973191,40.5472,2241.6,2240.8,0.79308575]
[1625514973541,42.75247,2241.6,2241.5,2.20527]
[1625514973640,42.75247,2241.6,2241.5,5.50427]
[1625514976566,42.75247,2241.6,2241.5,5.63643667]
[1625514977677,2.20527,2241.6,2241.5,5.63643667]
[1625514981839,2.20527,2241.6,2241.5,5.50427]
[1625514984799,2.20527,2241.6,2241.5,5.63642702]
[1625514985149,1.31516893,2242.4,2241.5,5.63642702]
[1625514985666,3.52043893,2242.4,2242.1,4.81357]
[1625514985861,2.20527,2242.4,2242.1,4.81357]
[1625514986365,50.4629,2242.3,2242.1,4.81357]
[1625514986763,50.4629,2242.3,2242.1,2.6083]
[1625514986866,50.4629,2242.3,2241.5,5.50427]
[1625514986963,51.77829046,2242.3,2241.5,5.50427]
[1625514987614,2.20527,2241.6,2241.5,5.50427]
[1625514988318,2.20527,2241.6,2241.5,5.63643778]
[1625514988767,2.20527,2241.6,2241.5,2.33743778]
[1625514989069,2.20527,2241.6,2241.5,2.20527]
[1625514989421,2.20527,2241.6,2240.7,69.67226204]
[1625514989618,2.20527,2240.9,2240.7,71.87753204]
[1625514989819,2.20527,2240.9,2240.8,0.79313359]
[1625514992225,2.20527,2241.1,2240.8,0.79313359]
[1625514993680,2.20527,2241.1,2241.0,2.20527]
[1625514994332,2.20527,2241.1,2241.0,2.33745733]
[1625514995986,2.20527,2241.1,2241.0,5.56505733]
[1625514996088,2.20527,2241.1,2241.0,3.35978733]
[1625514997688,2.20527,2241.1,2241.0,5.56505733]
[1625514998808,2.20527,2241.4,2241.0,5.56505733]
[1625514999107,2.20527,2241.4,2241.1,0.13217607]
[1625514999206,2.20527,2241.4,2241.3,39.2607]
[1625514999508,2.20527,2241.4,2241.3,39.39287392]
[1625514999759,2.20527,2241.4,2241.3,41.59814392]
[1625515000258,2.20527,2241.4,2241.3,42.25894029]
[1625515000513,1.31604599,2242.2,2241.3,42.25894029]
[1625515000964,1.31604599,2242.2,2241.4,0.13216353]
[1625515001713,2.20527,2241.9,2241.8,2.20527]
[1625515001816,57.93417,2241.9,2241.8,5.54407]
[1625515003118,57.93417,2241.9,2241.8,3.3388]
[1625515003766,60.13944,2241.9,2241.8,5.54407]
[1625515008892,60.13944,2241.9,2241.8,3.3388]
[1625515008994,62.86844,2241.9,2241.1,1.315226]
[1625515009196,62.86844,2241.9,2240.9,2.63209673]
[1625515009197,62.86844,2241.9,2240.9,1.31620817]
[1625515009292,62.86844,2241.9,2241.2,0.13217917]
[1625515009594,64.17929652,2241.9,2241.2,0.13217917]
[1625515009693,44.4108,2241.4,2241.0,0.13217943]
[1625515009794,2.20527,2241.3,2241.2,2.20527]
[1625515010046,2.20527,2241.3,2241.2,2.33744866]
[1625515011745,4.41054,2241.3,2241.2,2.33744866]
[1625515014163,57.03975652,2241.9,2241.2,2.33744866]
[1625515014264,57.03975652,2241.9,2241.2,5.34294866]
[1625515014668,57.03975652,2241.9,2241.3,0.13217542]
[1625515015789,2.20527,2241.6,2241.5,2.20527]
[1625515016169,2.20527,2241.6,2241.5,2.33743753]
[1625515016520,2.20527,2241.6,2241.5,43.84783753]
[1625515017723,4.41054,2241.6,2241.5,43.84783753]
[1625515018125,4.41054,2241.6,2241.5,2.33743753]
[1625515019826,4.41054,2241.6,2241.5,2.20527]
[1625515021634,4.41054,2241.6,2241.5,2.33743827]
[1625515021985,4.41054,2241.6,2241.5,2.20527]
[1625515022185,4.41054,2241.6,2241.2,41.3298]
[1625515022285,48.15904,2241.6,2241.2,41.3298]
[1625515022586,48.15904,2241.6,2241.0,42.6265]
[1625515022787,48.15904,2241.6,2241.3,0.13217964]
[1625515023136,48.15904,2241.6,2241.1,0.13218018]
[1625515023787,2.20527,2241.2,2241.1,0.13218018]
[1625515026294,45.95377,2241.6,2241.1,0.13218018]
[1625515027799,2.20527,2241.2,2241.1,0.13218018]
[1625515029602,48.36417,2241.2,2241.1,0.13218018]
[1625515030003,48.36417,2241.2,2240.7,3.52184599]
[1625515030304,48.36417,2241.2,2240.7,2.20527]
[1625515030405,48.36417,2241.2,2240.8,0.13219762]
[1625515031303,49.24557,2241.2,2240.8,0.13219762]
[1625515031556,54.24557,2241.2,2240.5,1.31667724]
[1625515031724,54.24557,2241.2,2240.3,0.43055586]
[1625515031778,54.24557,2241.2,2240.2,0.97880323]
[1625515031863,4.41054,2240.4,2240.2,3.23e-06]
[1625515031964,12.57484,2240.4,2240.0,2.66516082]
[1625515032066,12.57484,2240.4,2240.0,1.11116082]
[1625515032183,12.57484,2240.4,2239.5,4.83995319]
[1625515032367,48.6623,2239.8,2239.5,4.83995319]
[1625515032494,50.8627,2239.8,2239.5,4.83995319]
[1625515032568,50.8627,2239.8,2239.5,2.20527]
[1625515032868,50.8627,2239.8,2239.3,2.20527]
[1625515032967,44.5309,2239.1,2238.6,2.31614994]
[1625515033071,44.5309,2239.1,2238.5,15.96525709]
[1625515033169,44.5309,2239.1,2238.6,0.18924071]
[1625515033368,44.5309,2239.1,2238.6,2.17339124]
[1625515033720,44.5309,2239.1,2238.6,1.98415053]
[1625515033825,46.73617,2239.1,2238.9,2.20527]
[1625515035278,4.80407,2239.1,2238.9,2.20527]
[1625515035379,1.0,2240.2,2238.9,2.20527]
[1625515035516,74.4567,2240.3,2238.9,2.20527]
[1625515035517,14.9719,2240.3,2238.9,5.64457]
[1625515035679,1.0,2240.9,2239.0,0.66137326]
[1625515035892,2.20527,2240.2,2240.1,2.20527]
[1625515035981,2.20527,2240.2,2240.1,4.83817]
[1625515036490,2.20527,2240.2,2240.1,45.91487]
[1625515037745,1.0,2241.1,2240.1,45.91487]
[1625515037847,2.20527,2240.8,2240.5,2.20527]
[1625515039754,2.20527,2240.8,2240.7,51.0228]
[1625515039854,2.20527,2240.8,2240.7,55.84757]
[1625515044390,1.0,2241.7,2240.7,55.84757]
[1625515044490,1.0,2242.5,2240.7,55.84757]
[1625515044588,71.43452345,2242.6,2240.7,55.84757]
[1625515044687,71.43452345,2242.6,2240.7,57.50841429]
[1625515044688,67.2804,2242.6,2240.7,57.50841429]
[1625515045039,67.2804,2242.6,2241.6,44.226]
[1625515045138,67.2804,2242.6,2241.6,46.4474]
[1625515045589,62.5214,2242.6,2241.6,46.4474]
[1625515045891,2.20527,2242.2,2242.1,2.20527]
[1625515046092,2.20527,2242.2,2241.9,2.20527]
[1625515047898,2.20527,2242.2,2241.9,4.41054]
[1625515047996,4.41054,2242.2,2241.9,4.41054]